bitfinex/quotes_BTCUSD_20241010
["timestamp","ask_amount","ask_price","bid_price","bid_amount"]
[1728585431578,0.3608353,59338.0,59337.0,0.000814]
[1728585432040,0.3869093,59338.0,59333.0,0.0001]
[1728585432275,0.3869093,59338.0,59323.0,0.001]
[1728585432276,0.168594,59314.0,59305.0,0.25366589]
[1728585432503,0.191594,59314.0,59308.0,0.16861]
[1728585432718,0.337155,59320.0,59312.0,0.168599]
[1728585432968,0.337155,59320.0,59307.0,0.005]
[1728585432969,0.191594,59314.0,59311.0,0.168602]
[1728585433225,0.023,59316.0,59313.0,0.169411]
[1728585433456,0.337155,59320.0,59313.0,0.000814]
[1728585433457,0.1923093,59314.0,59313.0,0.000814]
[1728585434332,0.1923093,59314.0,59313.0,0.169411]
[1728585434560,0.3609033,59314.0,59313.0,0.000814]
[1728585435246,0.46442883,59314.0,59313.0,0.000814]
[1728585435523,0.3609033,59314.0,59313.0,0.000814]
[1728585435739,0.1923093,59314.0,59313.0,0.000814]
[1728585435960,0.1923093,59314.0,59313.0,0.169411]
[1728585437100,0.1693093,59314.0,59313.0,0.169411]
[1728585437228,0.1923093,59314.0,59313.0,0.171411]
[1728585437684,0.1693093,59314.0,59313.0,0.176411]
[1728585437892,0.0808,59331.0,59318.0,0.005]
[1728585438134,0.25285089,59321.0,59320.0,0.173577]
[1728585438361,0.1693093,59321.0,59320.0,0.175577]
[1728585438585,0.42138989,59334.0,59320.0,0.175577]
[1728585438586,0.25285089,59334.0,59333.0,0.16854]
[1728585438835,0.42216019,59334.0,59333.0,0.16854]
[1728585439036,0.42216019,59334.0,59331.0,0.168545]
[1728585439281,0.168544,59332.0,59327.0,0.337113]
[1728585439511,0.1693093,59331.0,59327.0,0.168556]
[1728585439716,0.023,59330.0,59328.0,0.168553]
[1728585439938,0.88474474,59334.0,59326.0,0.005]
[1728585439939,0.023,59328.0,59326.0,0.005]
[1728585440155,0.1923093,59327.0,59326.0,0.510678]
[1728585440587,0.1923093,59327.0,59326.0,0.17356]
[1728585441252,0.1923093,59327.0,59322.0,0.168571]
[1728585441253,0.023,59326.0,59322.0,0.168571]
[1728585441496,0.29481585,59329.0,59318.0,0.337165]
[1728585441497,0.023,59324.0,59318.0,0.342165]
[1728585441707,0.29481585,59329.0,59318.0,0.342165]
[1728585441708,0.023,59322.0,59320.0,0.168576]
[1728585441923,0.1693093,59321.0,59320.0,0.168576]
[1728585442359,0.1693093,59321.0,59320.0,0.173576]
[1728585442569,0.1693093,59321.0,59318.0,0.005]
[1728585442782,0.1693093,59321.0,59316.0,0.342176]
[1728585443014,0.1693093,59321.0,59313.0,0.005814]
[1728585443226,0.1693093,59321.0,59316.0,0.168587]
[1728585443227,0.5064603,59321.0,59316.0,0.168587]
[1728585443437,0.168578,59320.0,59316.0,0.168587]
[1728585443701,0.168578,59320.0,59313.0,0.005814]
[1728585443702,0.168594,59314.0,59313.0,0.000814]
[1728585443913,0.65571915,59314.0,59313.0,0.000814]
[1728585445893,0.3609033,59314.0,59313.0,0.000814]
[1728585446778,0.002,59297.0,59291.0,0.337316]
[1728585447011,0.002,59297.0,59273.0,0.05017687]
[1728585447012,0.002,59281.0,59254.0,0.337527]
[1728585447252,0.005,59288.0,59278.0,0.42154689]
[1728585447253,0.002,59279.0,59278.0,0.42154689]
[1728585447465,0.002,59279.0,59274.0,0.337415]
[1728585447698,0.002,59275.0,59274.0,0.506123]
[1728585448166,0.00186491,59279.0,59278.0,0.168696]
[1728585448609,0.1693093,59279.0,59263.0,0.29481585]
[1728585448812,0.1693093,59279.0,59278.0,0.168696]
[1728585449036,0.17117421,59279.0,59278.0,0.168696]
[1728585449250,0.17117421,59279.0,59274.0,0.337415]
[1728585449464,0.16117421,59279.0,59275.0,0.337407]
[1728585449677,0.16117421,59279.0,59278.0,0.168696]
[1728585449897,0.005,59290.0,59276.0,0.29481585]
[1728585450109,0.25285089,59294.0,59284.0,0.29481585]
[1728585450338,0.00186491,59291.0,59290.0,0.168662]
[1728585450816,0.00186491,59291.0,59283.0,0.1]
[1728585451016,0.00186491,59291.0,59290.0,0.168662]
[1728585451274,0.00186491,59293.0,59289.0,0.337329]
[1728585451476,0.00186491,59293.0,59292.0,0.168656]
[1728585451910,0.00186491,59293.0,59288.0,0.337335]
[1728585452049,0.00186491,59293.0,59292.0,0.168656]
[1728585452249,0.005,59294.0,59293.0,0.168653]
[1728585452565,0.00686491,59294.0,59293.0,0.168653]
[1728585453157,0.00186491,59293.0,59290.0,0.16866]
[1728585453364,0.00186491,59293.0,59288.0,0.168667]
[1728585453569,0.00186491,59289.0,59288.0,0.268667]
[1728585453768,0.00186491,59289.0,59288.0,0.1]
[1728585454004,0.00186491,59287.0,59286.0,0.268671]
[1728585454210,0.005,59290.0,59257.0,0.33764209]
[1728585454211,0.00186491,59284.0,59269.0,0.29481585]
[1728585454471,0.00186491,59284.0,59283.0,0.168682]
[1728585454854,0.00186491,59284.0,59282.0,0.168785]
[1728585455075,0.00186491,59283.0,59282.0,0.0001]
[1728585455278,0.00186491,59283.0,59282.0,0.168785]
[1728585455493,0.00186491,59283.0,59282.0,0.0001]
[1728585455726,0.00186491,59283.0,59282.0,0.168785]
[1728585455941,0.005,59285.0,59284.0,0.168679]
[1728585456136,0.1743093,59285.0,59284.0,0.168679]
[1728585456585,0.17617421,59285.0,59284.0,0.168679]
[1728585456808,0.25285089,59295.0,59285.0,0.33735]
[1728585456809,0.2547158,59295.0,59285.0,0.33735]
[1728585457016,0.25785089,59295.0,59294.0,0.168651]
[1728585457477,0.25785089,59295.0,59292.0,0.505969]
[1728585457478,0.005,59293.0,59292.0,0.505969]
[1728585457687,0.00686491,59295.0,59294.0,0.168651]
[1728585458437,0.005,59295.0,59294.0,0.168651]
[1728585458659,0.00663,59293.0,59290.0,0.337319]
[1728585458884,0.00663,59293.0,59285.0,0.1]
[1728585458885,0.25285089,59291.0,59287.0,0.1]
[1728585459093,0.00663,59293.0,59286.0,0.168673]
[1728585459094,0.005,59289.0,59286.0,0.168673]
[1728585459313,0.00186491,59287.0,59285.0,0.268675]
[1728585459539,0.42716019,59286.0,59279.0,0.100815]
[1728585459770,0.033,59283.0,59279.0,0.000815]
[1728585459987,0.2023093,59283.0,59279.0,0.000815]
[1728585460214,0.20417421,59283.0,59279.0,0.000815]
[1728585463082,0.67267206,59283.0,59279.0,0.000815]
[1728585466885,0.69253966,59283.0,59279.0,0.000815]
[1728585467524,0.86198236,59283.0,59279.0,0.000815]
[1728585467737,0.69253966,59283.0,59279.0,0.000815]
[1728585467983,0.20855491,59280.0,59279.0,0.000815]
[1728585468221,0.85378006,59280.0,59279.0,0.000815]
[1728585468477,0.00186491,59247.0,59237.0,0.02640067]
[1728585468701,0.00186491,59247.0,59236.0,0.000815]
[1728585468702,0.00186491,59247.0,59246.0,0.25285089]
[1728585468947,0.38091585,59257.0,59241.0,0.3376]
[1728585468948,0.00186491,59242.0,59241.0,0.506402]
[1728585469182,0.00186491,59242.0,59241.0,0.168802]
[1728585469398,0.46358685,59252.0,59238.0,0.337616]
[1728585469399,0.00186491,59239.0,59238.0,0.337616]
[1728585469653,0.005,59242.0,59241.0,0.168802]
[1728585469872,0.005,59243.0,59242.0,0.168799]
[1728585470106,0.005,59246.0,59241.0,0.168802]
[1728585470107,0.005,59242.0,59241.0,0.168802]
[1728585470345,0.00686491,59242.0,59241.0,0.168802]
[1728585470602,0.00686491,59242.0,59236.0,0.000815]
[1728585470603,0.00186491,59237.0,59236.0,0.000815]
[1728585470832,0.00186491,59237.0,59236.0,0.269628]
[1728585471791,0.00186491,59237.0,59236.0,0.100815]
[1728585471992,0.00186491,59237.0,59236.0,0.000815]
[1728585471993,0.18117421,59237.0,59236.0,0.000815]
[1728585472440,0.28197421,59237.0,59236.0,0.000815]
[1728585472658,0.45578721,59237.0,59236.0,0.000815]
[1728585473083,0.7086381,59237.0,59236.0,0.000815]
[1728585473295,0.41514774,59237.0,59236.0,0.000815]
[1728585473971,0.49918563,59237.0,59232.0,0.000815]
[1728585474184,0.67094915,59233.0,59232.0,0.000815]
[1728585474395,0.85484915,59233.0,59232.0,0.000815]
[1728585475033,0.68602515,59233.0,59232.0,0.000815]
[1728585475276,0.68602515,59233.0,59184.0,0.00011]
[1728585475277,0.005,59225.0,59184.0,0.00011]
[1728585475503,0.77833185,59201.0,59184.0,0.00011]
[1728585475976,0.01,59185.0,59184.0,0.00011]
[1728585476225,0.50177685,59185.0,59184.0,0.00011]
[1728585476459,0.73526564,59185.0,59184.0,0.00011]
[1728585476701,0.2842093,59185.0,59184.0,0.00011]
[1728585476934,0.01,59186.0,59184.0,0.338039]
[1728585477155,0.45516019,59185.0,59184.0,0.00011]
[1728585477432,0.2023093,59185.0,59184.0,0.00011]
[1728585478807,0.1693093,59185.0,59184.0,0.169074]
[1728585479029,0.01,59187.0,59185.0,0.168961]
[1728585479030,0.005,59186.0,59185.0,0.168961]
[1728585479254,0.005,59185.0,59184.0,0.00011]
[1728585480545,0.005,59185.0,59184.0,0.169074]
[1728585480761,0.25285089,59194.0,59184.0,0.00011]
[1728585480975,0.25285089,59194.0,59193.0,0.168938]
[1728585481229,0.25785089,59194.0,59193.0,0.168938]
[1728585481464,0.25785089,59200.0,59186.0,0.44640464]
[1728585481465,0.005,59198.0,59186.0,0.44640464]
[1728585481679,0.005,59202.0,59192.0,0.44640464]
[1728585481913,0.005,59201.0,59200.0,0.168918]
[1728585482136,0.005,59195.0,59194.0,0.168935]
[1728585482354,0.005,59200.0,59199.0,0.168921]
[1728585482576,0.005,59201.0,59200.0,0.168918]
[1728585483519,0.005,59201.0,59195.0,0.337862]
[1728585483784,0.005,59198.0,59196.0,0.00337834]
[1728585484010,0.005,59198.0,59197.0,0.506779]
[1728585484227,0.005,59199.0,59198.0,0.168924]
[1728585484477,0.25785089,59212.0,59205.0,0.337804]
[1728585484728,0.25285089,59204.0,59203.0,0.26891]
[1728585484951,0.005,59207.0,59203.0,0.1]
[1728585485178,0.005,59207.0,59205.0,0.337808]
[1728585485379,0.005,59207.0,59206.0,0.168901]
[1728585485605,0.005,59207.0,59205.0,0.168903]
[1728585485813,0.01,59214.0,59202.0,0.1]
[1728585486024,0.26285089,59213.0,59212.0,0.168884]
[1728585486235,0.25285089,59213.0,59212.0,0.168884]
[1728585486449,0.005,59214.0,59213.0,0.268881]
[1728585487531,0.005,59216.0,59214.0,0.1]
[1728585487746,0.59050889,59232.0,59220.0,0.168861]
[1728585487747,0.005,59221.0,59220.0,0.168861]
[1728585487951,0.005,59221.0,59215.0,0.44640464]
[1728585487952,0.01,59221.0,59217.0,0.1]
[1728585488163,0.01,59221.0,59220.0,0.168861]
[1728585488389,0.005,59221.0,59217.0,0.1]
[1728585488584,0.005,59221.0,59219.0,0.337728]
[1728585488800,0.005,59221.0,59217.0,0.1]
[1728585488801,0.1693093,59231.0,59228.0,0.337676]
[1728585489002,0.25785089,59232.0,59227.0,0.33768]
[1728585489003,0.005,59228.0,59227.0,0.33768]
[1728585489215,0.25785089,59232.0,59224.0,0.3377]
[1728585489453,0.005,59223.0,59222.0,0.606568]
[1728585489885,0.005,59223.0,59222.0,0.1]
[1728585490128,0.005,59223.0,59219.0,0.03]
[1728585490129,0.01,59223.0,59219.0,0.03]
[1728585490343,0.01,59223.0,59220.0,0.337722]
[1728585490563,0.01,59223.0,59222.0,0.168856]
[1728585491428,0.005,59223.0,59222.0,0.168856]
[1728585491658,0.005,59223.0,59222.0,0.17223275]
[1728585492294,0.25285089,59237.0,59230.0,0.002]
[1728585492518,0.25285089,59243.0,59242.0,0.173799]
[1728585492728,0.25285089,59243.0,59242.0,0.007]
[1728585492943,0.25285089,59243.0,59236.0,0.007]
[1728585493146,0.25285089,59243.0,59235.0,0.005]
[1728585493374,0.33757,59247.0,59237.0,0.005]
[1728585493598,0.168792,59245.0,59237.0,0.005]
[1728585493980,0.023,59244.0,59237.0,0.005]
[1728585494189,0.33757,59247.0,59237.0,0.005]
[1728585494190,0.191788,59246.0,59237.0,0.005]
[1728585494424,0.1693093,59245.0,59237.0,0.005]
[1728585494642,0.337523,59256.0,59243.0,0.005]
[1728585494643,0.1693093,59244.0,59243.0,0.005]
[1728585494857,0.25285089,59262.0,59245.0,0.005]
[1728585495095,0.25285089,59253.0,59250.0,0.005]
[1728585495352,0.1693093,59261.0,59254.0,0.005]
[1728585495353,0.2519093,59261.0,59254.0,0.005]
[1728585495554,0.25285089,59255.0,59254.0,0.005]
[1728585495794,0.2519093,59261.0,59257.0,0.002]
[1728585496009,0.2519093,59261.0,59254.0,0.007]
[1728585496924,0.023,59260.0,59254.0,0.005]
[1728585497149,0.023,59260.0,59246.0,0.337571]
[1728585497150,0.023,59255.0,59242.0,0.005]
[1728585497386,0.86856483,59256.0,59250.0,0.25285089]
[1728585497387,0.023,59252.0,59250.0,0.25285089]
[1728585497598,0.023,59252.0,59244.0,0.25285089]
[1728585497599,0.3380823,59251.0,59244.0,0.25285089]
[1728585497810,0.023,59250.0,59244.0,0.25285089]
[1728585498031,0.023,59248.0,59244.0,0.25285089]
[1728585498252,0.023,59248.0,59243.0,0.005]
[1728585498253,0.023,59246.0,59243.0,0.005]
[1728585498463,0.023,59248.0,59243.0,0.005]
[1728585498464,0.023,59244.0,59243.0,0.005]
[1728585498720,0.1837,59253.0,59246.0,0.005]
[1728585498925,0.1923093,59252.0,59251.0,0.29584181]
[1728585500955,0.0826,59261.0,59251.0,0.29584181]
[1728585501168,0.1693093,59260.0,59255.0,0.005]
[1728585502085,0.1693093,59260.0,59258.0,0.005]
[1728585502310,0.1693093,59260.0,59259.0,0.29584181]
[1728585502519,0.0826,59269.0,59260.0,0.005]
[1728585502745,0.1693093,59267.0,59266.0,0.29584181]
[1728585503829,0.1923093,59267.0,59266.0,0.29584181]
[1728585504325,0.1693093,59267.0,59266.0,0.29584181]
[1728585504518,0.1693093,59267.0,59260.0,0.005]
[1728585504737,0.1693093,59267.0,59259.0,0.29584181]
[1728585504738,0.1693093,59267.0,59261.0,0.005]
[1728585504941,0.168737,59264.0,59256.0,0.005]
[1728585505169,0.1693093,59263.0,59249.0,0.005]
[1728585505381,0.1693093,59257.0,59247.0,0.005]
[1728585505617,0.023,59255.0,59251.0,0.25785089]
[1728585505826,0.023,59255.0,59254.0,0.000814]
[1728585505827,0.191763,59255.0,59254.0,0.000814]
[1728585506115,0.023,59255.0,59254.0,0.000814]
[1728585507423,0.1923093,59255.0,59254.0,0.000814]
[1728585509644,0.1693093,59255.0,59254.0,0.000814]
[1728585509893,0.0804,59262.0,59255.0,0.005]
[1728585510099,0.1693093,59261.0,59255.0,0.005]
[1728585510312,0.1693093,59261.0,59257.0,0.29584181]
[1728585510519,0.1693093,59261.0,59257.0,0.30084181]
[1728585510937,0.023,59260.0,59257.0,0.30084181]
[1728585511178,0.92771489,59272.0,59262.0,0.005]
[1728585511179,0.0789,59271.0,59262.0,0.005]
[1728585511409,0.25285089,59266.0,59264.0,0.005]
[1728585511641,0.1693093,59269.0,59268.0,0.29584181]
[1728585511859,0.1693093,59270.0,59268.0,0.29584181]
[1728585512323,0.0828,59279.0,59268.0,0.29584181]
[1728585512324,0.0828,59279.0,59268.0,0.46456481]
[1728585512542,0.0828,59279.0,59273.0,0.29584181]
[1728585512543,0.1693093,59278.0,59273.0,0.29584181]
[1728585513883,0.1693093,59278.0,59275.0,0.005]
[1728585514106,0.1693093,59278.0,59269.0,0.005]
[1728585514107,0.25285089,59277.0,59273.0,0.005]
[1728585514325,0.25285089,59277.0,59267.0,0.005]
[1728585514326,0.168704,59276.0,59267.0,0.005]
[1728585514544,0.1693093,59275.0,59267.0,0.005]
[1728585514757,0.1693093,59275.0,59273.0,0.005]
[1728585514979,0.023,59274.0,59273.0,0.005]
[1728585515201,0.023,59274.0,59266.0,0.005]
[1728585515202,0.023,59273.0,59266.0,0.005]
[1728585515417,0.023,59273.0,59260.0,0.30284181]
[1728585515418,0.023,59271.0,59267.0,0.005]
[1728585515629,0.023,59269.0,59267.0,0.005]
[1728585515881,0.1693093,59268.0,59267.0,0.005]
[1728585516092,0.16562588,59347.0,59263.0,0.25285089]
[1728585516093,0.1865,59287.0,59276.0,0.005]
[1728585516757,0.1693093,59284.0,59277.0,0.005]
[1728585516973,0.1693093,59284.0,59279.0,0.005]
[1728585518572,0.023,59283.0,59279.0,0.005]
[1728585518787,0.1693093,59282.0,59279.0,0.005]
[1728585520288,0.1693093,59282.0,59280.0,0.005]
[1728585520522,0.1693093,59282.0,59281.0,0.005]
[1728585521601,0.1693093,59282.0,59280.0,0.005]
[1728585521602,0.023,59281.0,59280.0,0.005]
[1728585521808,0.1923093,59281.0,59280.0,0.005]
[1728585522316,0.1923093,59281.0,59279.0,0.005]
[1728585522563,0.1865,59287.0,59273.0,0.71329328]
[1728585522564,0.023,59279.0,59273.0,0.005]
[1728585522766,0.023,59279.0,59270.0,0.005]
[1728585522767,0.023,59277.0,59270.0,0.005]
[1728585523006,0.023,59275.0,59270.0,0.005]
[1728585523248,0.023,59275.0,59267.0,0.000814]
[1728585523249,0.023,59273.0,59267.0,0.000814]
[1728585523473,0.023,59271.0,59267.0,0.000814]
[1728585523713,0.023,59269.0,59267.0,0.000814]
[1728585523940,0.1693093,59268.0,59267.0,0.000814]
[1728585524180,0.1693093,59268.0,59267.0,0.005814]
[1728585524908,0.1693093,59268.0,59267.0,0.007814]
[1728585525130,0.0763,59274.0,59271.0,0.005]
[1728585525344,0.1923093,59273.0,59271.0,0.002]
[1728585525559,0.1923093,59273.0,59271.0,0.007]
[1728585526202,0.1923093,59273.0,59272.0,0.005]
[1728585526417,0.023,59278.0,59272.0,0.005]
[1728585526651,0.1693093,59277.0,59276.0,0.45544239]
[1728585526872,0.1693093,59277.0,59276.0,0.46244239]
[1728585526873,0.1923093,59277.0,59276.0,0.46244239]
[1728585527345,0.25285089,59285.0,59278.0,0.168694]
[1728585527592,0.1693093,59284.0,59283.0,0.002]
[1728585528032,0.1693093,59284.0,59283.0,0.007]
[1728585528986,0.023,59289.0,59287.0,0.007]
[1728585529202,0.1923093,59288.0,59287.0,0.46244239]
[1728585530505,0.25285089,59296.0,59287.0,0.46244239]
[1728585530738,0.168655,59293.0,59287.0,0.005]
[1728585530961,0.3379673,59292.0,59287.0,0.005]
[1728585531177,0.1693093,59292.0,59287.0,0.005]
[1728585532529,0.1693093,59292.0,59284.0,0.005]
[1728585532530,0.023,59291.0,59284.0,0.005]
[1728585532781,0.1693093,59290.0,59287.0,0.005]
[1728585534058,0.023,59289.0,59287.0,0.005]
[1728585534288,0.1693093,59288.0,59287.0,0.005]
[1728585534542,0.1923093,59288.0,59287.0,0.007]
[1728585534747,0.1923093,59288.0,59287.0,0.005]
[1728585535188,0.25285089,59297.0,59287.0,0.005]
[1728585535381,0.023,59295.0,59292.0,0.45544239]
[1728585535618,0.023,59295.0,59293.0,0.002]
[1728585535619,0.1693093,59294.0,59293.0,0.002]
[1728585536047,0.1693093,59294.0,59292.0,0.45544239]
[1728585536505,0.1693093,59294.0,59289.0,0.005]
[1728585536506,0.023,59293.0,59289.0,0.005]
[1728585536730,0.023,59293.0,59288.0,0.005]
[1728585536731,0.023,59291.0,59288.0,0.005]
[1728585536939,0.023,59291.0,59283.0,0.005814]
[1728585536940,0.023,59288.0,59283.0,0.005814]
[1728585537168,0.1693093,59287.0,59283.0,0.005814]
[1728585537388,0.023,59286.0,59283.0,0.000814]
[1728585537596,0.1693093,59285.0,59283.0,0.005814]
[1728585537830,0.1693093,59285.0,59283.0,0.000814]
[1728585538469,0.1693093,59285.0,59284.0,0.005]
[1728585538897,0.023,59284.0,59283.0,0.000814]
[1728585539146,0.1923093,59284.0,59283.0,0.000814]
[1728585539403,0.3609883,59284.0,59283.0,0.000814]
[1728585539636,0.4370883,59284.0,59283.0,0.000814]
[1728585541103,0.64826603,59284.0,59283.0,0.000814]
[1728585541313,0.64826603,59284.0,59267.0,0.005814]
[1728585541314,0.191714,59272.0,59271.0,0.25285089]
[1728585541550,0.1923093,59272.0,59271.0,0.25285089]
[1728585541967,0.1923093,59272.0,59270.0,0.29550024]
[1728585541968,0.023,59271.0,59270.0,0.29550024]
[1728585542179,0.1923093,59271.0,59270.0,0.29550024]
[1728585543015,0.25285089,59283.0,59270.0,0.29550024]
[1728585543225,0.25285089,59283.0,59275.0,0.29550024]
[1728585543226,0.1923093,59282.0,59275.0,0.29550024]
[1728585543467,0.1923093,59282.0,59280.0,0.29550024]
[1728585543680,0.30404501,59303.0,59280.0,0.29550024]
[1728585543681,0.0826,59296.0,59284.0,0.002]
[1728585543922,0.1693093,59290.0,59285.0,0.005]
[1728585544148,0.1693093,59290.0,59289.0,0.30050024]
[1728585544563,0.1693093,59290.0,59289.0,0.29550024]
[1728585544788,0.1693093,59290.0,59289.0,0.30050024]
[1728585545223,0.1923093,59290.0,59289.0,0.30050024]
[1728585545659,0.1923093,59290.0,59289.0,0.30250024]
[1728585545866,0.1923093,59290.0,59289.0,0.30050024]
[1728585548343,0.1923093,59290.0,59276.0,0.005]
[1728585548344,0.023,59289.0,59276.0,0.005]
[1728585548542,0.023,59289.0,59281.0,0.25285089]
[1728585548543,0.191685,59282.0,59281.0,0.25285089]
[1728585548749,0.3609943,59282.0,59281.0,0.25285089]
[1728585548957,0.3609943,59282.0,59276.0,0.005]
[1728585548958,0.023,59281.0,59276.0,0.005]
[1728585549177,0.674712,59285.0,59272.0,0.29550024]
[1728585549178,0.023,59279.0,59274.0,0.005]
[1728585549409,0.1693093,59280.0,59270.0,0.25366489]
[1728585549410,0.023,59277.0,59273.0,0.005]
[1728585549633,0.02284289,59275.0,59273.0,0.005]
[1728585549847,0.1693093,59274.0,59273.0,0.005]
[1728585551141,0.3380173,59274.0,59270.0,0.000814]
[1728585551353,0.1693093,59274.0,59270.0,0.005814]
[1728585551806,0.1693093,59274.0,59273.0,0.29550024]
[1728585552016,0.023,59277.0,59275.0,0.007]
[1728585552228,0.1693093,59276.0,59275.0,0.007]
[1728585552462,0.1693093,59276.0,59275.0,0.005]
[1728585552683,0.023,59283.0,59276.0,0.005]
[1728585552889,0.023,59283.0,59278.0,0.29550024]
[1728585552890,0.023,59281.0,59278.0,0.29550024]
[1728585553114,0.023,59279.0,59278.0,0.29550024]
[1728585553317,0.0815,59285.0,59278.0,0.29550024]
[1728585553530,0.25285089,59291.0,59285.0,0.002]
[1728585553802,0.25285089,59291.0,59285.0,0.005]
[1728585553803,0.1693093,59290.0,59285.0,0.005]
[1728585554011,0.1693093,59290.0,59289.0,0.29550024]
[1728585554490,0.1693093,59290.0,59285.0,0.005]
[1728585555731,0.1691692,59290.0,59288.0,0.29550024]
[1728585556157,0.1691692,59290.0,59286.0,0.005]
[1728585556797,0.1707972,59290.0,59286.0,0.005]
[1728585558581,0.1707972,59290.0,59287.0,0.002]
[1728585559429,0.1707972,59290.0,59286.0,0.005]
[1728585560269,0.1707972,59290.0,59286.0,0.007]
[1728585561579,0.1707972,59290.0,59284.0,0.005]
[1728585561815,0.1707972,59290.0,59285.0,0.005]
[1728585561816,0.168669,59288.0,59285.0,0.005]
[1728585562081,0.168669,59288.0,59279.0,0.007]
[1728585562082,0.1923093,59287.0,59286.0,0.005]
[1728585562303,0.1923093,59287.0,59284.0,0.005]
[1728585562532,0.3609823,59287.0,59281.0,0.005]
[1728585562772,0.191676,59285.0,59279.0,0.005]
[1728585562966,0.023,59283.0,59279.0,0.25785089]
[1728585563176,0.023,59283.0,59279.0,0.005]
[1728585563177,0.023,59281.0,59279.0,0.005]
[1728585563388,0.023,59281.0,59276.0,0.29550024]
[1728585563389,0.023,59279.0,59276.0,0.29550024]
[1728585563609,0.023,59281.0,59276.0,0.29550024]
[1728585563610,0.1693093,59278.0,59276.0,0.29550024]
[1728585563836,0.1693093,59278.0,59271.0,0.29550024]
[1728585563837,0.023,59277.0,59271.0,0.29550024]
[1728585564044,0.1693093,59276.0,59271.0,0.29550024]
[1728585568108,0.1693093,59276.0,59271.0,0.29631424]
[1728585569695,0.1693093,59276.0,59271.0,0.000814]
[1728585570338,0.25285089,59275.0,59271.0,0.000814]
[1728585570584,0.023,59273.0,59271.0,0.000814]
[1728585570821,0.1693093,59272.0,59271.0,0.000814]
[1728585571024,0.1923093,59272.0,59271.0,0.000814]
[1728585572187,0.3610223,59272.0,59271.0,0.000814]
[1728585572425,0.1923093,59272.0,59271.0,0.000814]
[1728585572642,0.1693093,59272.0,59271.0,0.000814]
[1728585572895,0.023,59283.0,59271.0,0.000814]
[1728585573106,0.25285089,59284.0,59271.0,0.000814]
[1728585573107,0.25285089,59284.0,59282.0,0.29550024]
[1728585573607,0.30327039,59291.0,59282.0,0.29550024]
[1728585573820,0.168677,59285.0,59271.0,0.29631424]
[1728585574049,0.337349,59286.0,59271.0,0.29631424]
[1728585574285,0.33736,59284.0,59271.0,0.000814]
[1728585574765,0.2781,59291.0,59271.0,0.000814]
[1728585574766,0.2781,59291.0,59271.0,0.338245]
[1728585574982,0.023,59286.0,59273.0,0.168709]
[1728585575196,0.1693093,59285.0,59280.0,0.29550024]
[1728585575445,0.1693093,59285.0,59280.0,0.46418924]
[1728585575673,0.001628,59290.0,59283.0,0.168682]
[1728585575883,0.001628,59290.0,59281.0,0.337374]
[1728585575884,0.001628,59290.0,59289.0,0.46416524]
[1728585578110,0.001628,59290.0,59289.0,0.29550024]
[1728585578566,0.001628,59290.0,59285.0,0.168675]
[1728585579217,0.001628,59290.0,59284.0,0.29550024]
[1728585579484,0.023,59288.0,59274.0,0.54835113]
[1728585579696,0.1693093,59287.0,59280.0,0.25285089]
[1728585579886,0.1693093,59287.0,59274.0,0.54835113]
[1728585579887,0.023,59286.0,59274.0,0.54835113]
[1728585580145,0.1693093,59285.0,59275.0,0.33741]
[1728585580372,0.25285089,59287.0,59275.0,0.33741]
[1728585580603,0.42216019,59287.0,59274.0,0.54835113]
[1728585580821,0.42216019,59287.0,59276.0,0.1687]
[1728585581716,0.42216019,59287.0,59275.0,0.337408]
[1728585581935,0.42216019,59287.0,59277.0,0.168699]
[1728585582387,0.42216019,59287.0,59274.0,0.54835113]
[1728585582607,0.36173432,59292.0,59282.0,0.25285089]
[1728585582608,0.02442032,59292.0,59282.0,0.25285089]
[1728585582827,0.25285089,59291.0,59288.0,0.46416624]
[1728585583072,0.25448489,59303.0,59291.0,0.168657]
[1728585583297,0.25448489,59303.0,59292.0,0.46415424]
[1728585583766,0.25448489,59303.0,59292.0,0.29550024]
[1728585583986,0.1693093,59302.0,59292.0,0.29550024]
[1728585584213,0.1693093,59302.0,59294.0,0.16865]
[1728585584437,0.1693093,59302.0,59292.0,0.46415624]
[1728585584662,0.1693093,59302.0,59292.0,0.29550024]
[1728585584956,0.1693093,59302.0,59293.0,0.25285089]
[1728585585191,0.001634,59303.0,59293.0,0.25285089]
[1728585585426,0.25285089,59302.0,59293.0,0.168653]
[1728585585645,0.25285089,59302.0,59292.0,0.29550024]
[1728585586136,0.001634,59303.0,59293.0,0.42150389]
[1728585586344,0.001634,59303.0,59293.0,0.25285089]
[1728585587274,0.001634,59303.0,59293.0,0.42150389]
[1728585587494,0.001634,59303.0,59296.0,0.29550024]
[1728585588423,0.001634,59303.0,59296.0,0.46414524]
[1728585588858,0.001634,59303.0,59296.0,0.29550024]
[1728585589081,0.001634,59303.0,59296.0,0.46414424]
[1728585589317,0.001634,59303.0,59296.0,0.29550024]
[1728585589559,0.42216019,59302.0,59287.0,0.54835113]
[1728585589784,0.1693093,59302.0,59293.0,0.25285089]
[1728585590007,0.1693093,59302.0,59287.0,0.71702013]
[1728585590008,0.25285089,59301.0,59287.0,0.71702013]
[1728585590492,0.25285089,59295.0,59287.0,0.29550024]
[1728585590734,0.0832,59298.0,59282.0,0.1]
[1728585590946,0.1693093,59295.0,59281.0,0.25285089]
[1728585591194,0.1693093,59295.0,59274.0,0.59026389]
[1728585591195,0.023,59293.0,59274.0,0.25285089]
[1728585591414,0.337332,59289.0,59282.0,0.25285089]
[1728585591673,0.1693093,59288.0,59274.0,0.25285089]
[1728585591912,0.16868,59284.0,59274.0,0.25285089]
[1728585592336,0.1693093,59284.0,59274.0,0.25285089]